bitfinex/quotes_BTCUSD_20251104
["timestamp","ask_amount","ask_price","bid_price","bid_amount"]
[1762237730911,3.0,105110.0,105100.0,0.12425]
[1762237731112,3.0,105110.0,105100.0,0.14391332]
[1762237731318,3.003,105110.0,105100.0,0.16294281]
[1762237731523,0.003,105110.0,105100.0,0.14391332]
[1762237731766,3.0,105110.0,105100.0,0.14391332]
[1762237731892,0.003,105110.0,105100.0,0.14391332]
[1762237732093,0.003,105110.0,105100.0,0.16294281]
[1762237732295,0.003,105110.0,105100.0,0.15721981]
[1762237732499,0.003,105110.0,105100.0,0.34751476]
[1762237732728,0.003,105110.0,105100.0,0.33820827]
[1762237733163,3.0,105120.0,105100.0,0.33820827]
[1762237733371,3.0,105120.0,105110.0,0.11603]
[1762237733597,3.0,105120.0,105110.0,0.20338883]
[1762237734224,3.00888845,105120.0,105110.0,0.20338883]
[1762237734424,0.00888845,105120.0,105110.0,0.16563]
[1762237734716,0.79628026,105130.0,105110.0,0.18665768]
[1762237734916,3.0,105120.0,105110.0,0.16763]
[1762237735116,3.00889267,105120.0,105110.0,0.11803]
[1762237735460,0.50054556,105130.0,105110.0,0.19065768]
[1762237735773,3.0,105120.0,105110.0,0.10446921]
[1762237736176,3.0,105120.0,105110.0,0.22871921]
[1762237736177,3.00889661,105120.0,105110.0,0.22871921]
[1762237736408,0.00889661,105120.0,105110.0,0.20969153]
[1762237736614,0.00889661,105120.0,105110.0,0.21069153]
[1762237736790,0.00889661,105120.0,105110.0,0.20969153]
[1762237736969,0.00889661,105120.0,105110.0,0.20569153]
[1762237737179,3.0,105120.0,105110.0,0.20769153]
[1762237737408,3.0,105120.0,105110.0,0.20969153]
[1762237737820,3.0,105120.0,105110.0,0.20769153]
[1762237737971,3.0,105120.0,105110.0,0.16763]
[1762237738169,3.0,105120.0,105110.0,0.09498]
[1762237738170,0.19025875,105120.0,105110.0,0.09498]
[1762237738445,0.19915698,105120.0,105110.0,0.09498]
[1762237738649,0.19915698,105120.0,105110.0,0.17163]
[1762237739189,0.19025875,105120.0,105110.0,0.17163]
[1762237739389,3.0,105120.0,105110.0,0.17163]
[1762237740412,3.0,105120.0,105110.0,0.20978701]
[1762237740612,0.00054556,105130.0,105110.0,0.19075933]
[1762237740833,0.00944201,105130.0,105120.0,0.12625]
[1762237741812,0.00944201,105130.0,105120.0,0.14527587]
[1762237742254,0.00944201,105130.0,105120.0,0.33553462]
[1762237742457,0.00944201,105130.0,105120.0,0.37514058]
[1762237742672,0.00054556,105130.0,105120.0,0.71514058]
[1762237742886,0.20298848,105160.0,105130.0,0.19023028]
[1762237743090,0.21188682,105160.0,105150.0,0.08898]
[1762237743300,0.02170044,105160.0,105150.0,0.08898]
[1762237743505,0.02170044,105160.0,105150.0,0.16563]
[1762237743706,0.02241105,105160.0,105150.0,0.16563]
[1762237744042,0.21259743,105160.0,105150.0,0.2027617]
[1762237744272,0.21259743,105160.0,105150.0,0.2047617]
[1762237745000,0.22752545,105160.0,105150.0,0.2047617]
[1762237745200,0.03733907,105160.0,105150.0,0.2047617]
[1762237745576,0.22752545,105160.0,105150.0,0.2057617]
[1762237745772,0.03733907,105160.0,105150.0,0.2057617]
[1762237746187,0.02453831,105160.0,105150.0,0.2057617]
[1762237746780,0.01563863,105160.0,105150.0,0.2057617]
[1762237748994,0.01563863,105160.0,105150.0,0.09198]
[1762237748995,0.20582501,105160.0,105150.0,0.09198]
[1762237749231,0.20582501,105160.0,105150.0,0.04238]
[1762237749232,0.21293415,105160.0,105150.0,0.04238]
[1762237749518,3.21293415,105160.0,105150.0,0.04238]
[1762237749659,3.21236415,105160.0,105150.0,0.09198]
[1762237749862,3.20582501,105160.0,105150.0,0.09198]
[1762237750236,3.64040107,105160.0,105150.0,0.09198]
[1762237750512,3.64040107,105160.0,105150.0,0.16863]
[1762237750671,3.64040107,105160.0,105150.0,0.09198]
[1762237751779,3.35563863,105160.0,105150.0,0.09202]
[1762237751979,3.20582501,105160.0,105150.0,0.16867]
[1762237752183,3.54582501,105160.0,105150.0,0.16867]
[1762237752437,3.54639501,105160.0,105150.0,0.00304]
[1762237752643,3.54639501,105160.0,105150.0,0.00308]
[1762237753001,3.54639501,105160.0,105150.0,0.00312]
[1762237753200,3.54639501,105160.0,105150.0,0.00316]
[1762237753336,3.54639501,105160.0,105150.0,0.0032]
[1762237754940,3.35620863,105160.0,105150.0,0.0032]
[1762237755141,3.35620863,105160.0,105150.0,0.14343044]
[1762237755142,0.34071061,105160.0,105150.0,0.14343044]
[1762237755485,0.53089699,105160.0,105150.0,0.0032]
[1762237756412,0.19089699,105160.0,105150.0,0.0032]
[1762237756834,0.00071061,105160.0,105150.0,0.05092]
[1762237757057,0.2816021,105160.0,105150.0,0.0032]
[1762237757273,3.2816021,105160.0,105150.0,0.0032]
[1762237759020,3.27923055,105160.0,105150.0,0.0032]
[1762237761101,0.54347761,105170.0,105150.0,0.14343044]
[1762237761102,0.01330874,105170.0,105150.0,0.14343044]
[1762237761306,0.00014541,105170.0,105160.0,0.04772]
[1762237761536,0.00014541,105170.0,105160.0,0.26861]
[1762237761765,0.01337439,105170.0,105160.0,0.32388189]
[1762237761992,0.00014541,105170.0,105160.0,0.51406827]
[1762237762475,3.19018638,105160.0,105150.0,0.0062]
[1762237762729,3.19018638,105160.0,105100.0,0.0400513]
[1762237762730,0.34,105120.0,105100.0,0.0400513]
[1762237762938,0.19027685,105110.0,105100.0,0.12883343]
[1762237763138,0.62096386,105120.0,105100.0,0.12883343]
[1762237763348,0.19027685,105110.0,105100.0,0.17655343]
[1762237763965,0.53975268,105130.0,105100.0,0.18269873]
[1762237764165,0.19025885,105120.0,105110.0,0.12121]
[1762237764389,0.19025885,105120.0,105110.0,0.13947987]
[1762237765001,0.19027685,105110.0,105100.0,0.0401966]
[1762237765431,0.19027685,105110.0,105100.0,0.0461966]
[1762237765607,3.19027685,105110.0,105100.0,0.0072566]
[1762237765987,3.53027685,105110.0,105100.0,0.0072566]
[1762237766192,3.53027685,105110.0,105100.0,0.0012566]
[1762237766394,3.62485291,105110.0,105100.0,0.0012566]
[1762237766602,3.62685291,105110.0,105100.0,0.0012566]
[1762237766771,3.4011848,105110.0,105100.0,0.0012566]
[1762237766972,3.59146165,105110.0,105100.0,0.0012566]
[1762237767361,3.49688559,105110.0,105100.0,0.0012566]
[1762237767994,3.49648583,105110.0,105100.0,0.0012566]
[1762237771215,0.53227685,105110.0,105100.0,0.0012566]
[1762237771422,0.342,105110.0,105100.0,0.0012566]
[1762237771632,0.002,105110.0,105100.0,0.0521066]
[1762237771835,0.002,105110.0,105100.0,0.13449547]
[1762237772947,0.19227685,105110.0,105100.0,0.13449547]
[1762237773159,0.19227685,105110.0,105100.0,0.28189547]
[1762237773737,0.19227685,105110.0,105100.0,0.1995066]
[1762237774101,0.19227685,105110.0,105100.0,0.1486566]
[1762237774320,0.002,105110.0,105100.0,0.1995066]
[1762237775067,0.002,105110.0,105100.0,0.2713666]
[1762237775397,0.19227685,105110.0,105100.0,0.2713666]
[1762237775604,0.002,105110.0,105100.0,0.30239726]
[1762237778111,0.002,105110.0,105100.0,0.29879726]
[1762237778528,0.002,105110.0,105100.0,0.48909221]
[1762237779187,0.002,105110.0,105100.0,0.29879726]
[1762237779409,0.002,105110.0,105100.0,0.48909221]
[1762237779842,0.002,105110.0,105100.0,0.57979732]
[1762237780067,0.20517618,105130.0,105100.0,0.38950237]
[1762237780237,0.20517618,105130.0,105110.0,0.12949768]
[1762237780569,0.20517618,105130.0,105120.0,0.00023672]
[1762237781085,0.20517271,105130.0,105120.0,0.00023672]
[1762237781915,0.01493206,105130.0,105120.0,0.05308672]
[1762237782120,0.01493206,105130.0,105120.0,0.14597259]
[1762237782322,0.01492469,105140.0,105130.0,0.19024065]
[1762237782594,3.0,105160.0,105130.0,0.39134304]
[1762237782773,0.29066902,105170.0,105150.0,0.03861]
[1762237782987,0.00912127,105170.0,105150.0,0.16132]
[1762237783221,0.00912127,105170.0,105150.0,0.18034044]
[1762237783421,0.19929121,105170.0,105150.0,0.2113711]
[1762237783594,0.00912127,105170.0,105160.0,0.05085]
[1762237783796,0.3402368,105170.0,105160.0,0.05085]
[1762237783998,0.3402368,105170.0,105160.0,0.04985]
[1762237783999,0.00038223,105170.0,105160.0,0.04985]
[1762237784209,0.00038223,105170.0,105150.0,0.33170438]
[1762237784570,0.00038223,105170.0,105160.0,0.01901863]
[1762237784773,0.00038223,105170.0,105160.0,0.05419093]
[1762237785219,0.00038223,105170.0,105160.0,0.05519093]
[1762237785419,0.00038223,105170.0,105160.0,0.17966093]
[1762237787210,0.00038223,105170.0,105160.0,0.46055242]
[1762237787437,0.00038223,105170.0,105160.0,0.1606423]
[1762237787638,0.00038223,105170.0,105160.0,0.35082868]
[1762237787838,0.00038223,105170.0,105160.0,0.1606423]
[1762237788223,0.00038223,105170.0,105160.0,0.35082868]
[1762237788420,0.00038223,105170.0,105160.0,0.34982868]
[1762237788844,0.00038223,105170.0,105160.0,0.35182868]
[1762237789006,0.00038223,105170.0,105160.0,0.1616423]
[1762237789384,0.00038223,105170.0,105160.0,0.35182868]
[1762237789591,0.00038223,105170.0,105160.0,0.35482868]
[1762237789928,0.00038223,105170.0,105160.0,0.1646423]
[1762237790403,0.00038223,105170.0,105160.0,0.0893823]
[1762237790948,0.00038223,105170.0,105160.0,0.1646423]
[1762237791880,0.00038223,105170.0,105160.0,0.35482868]
[1762237792082,0.00038223,105170.0,105160.0,0.1646423]
[1762237793929,0.19055052,105170.0,105160.0,0.12947]
[1762237794147,0.00038223,105170.0,105160.0,0.12947]
[1762237795841,0.01530668,105170.0,105160.0,0.12947]
[1762237796015,0.04523025,105180.0,105160.0,0.005]
[1762237796216,0.2808734,105170.0,105160.0,0.005]
[1762237796825,0.2808734,105170.0,105160.0,0.05121]
[1762237797027,0.2808734,105170.0,105160.0,0.12647]
[1762237797223,0.2808734,105170.0,105160.0,0.12547]
[1762237797960,0.54523025,105180.0,105160.0,0.05021]
[1762237798183,3.0,105170.0,105160.0,0.12547]
[1762237798361,3.0,105170.0,105160.0,0.05021]
[1762237798557,3.0,105170.0,105160.0,0.04921]
[1762237798960,0.001,105170.0,105160.0,0.04921]
[1762237799548,3.0,105170.0,105160.0,0.04921]
[1762237799752,3.0,105170.0,105160.0,0.28946479]
[1762237799975,0.54507693,105180.0,105160.0,0.17453841]
[1762237800180,0.54607543,105180.0,105170.0,0.08608]
[1762237800387,0.01492522,105180.0,105170.0,0.08608]
[1762237800804,0.20507543,105180.0,105170.0,0.08608]
[1762237801391,0.01492522,105180.0,105170.0,0.10822084]
[1762237801633,0.01492522,105180.0,105170.0,0.18348084]
[1762237801843,0.01492522,105180.0,105170.0,0.001]
[1762237801844,0.20507543,105180.0,105170.0,0.001]
[1762237802057,0.01492522,105180.0,105170.0,0.08708]
[1762237802274,0.01492522,105180.0,105170.0,0.16234]
[1762237802479,0.01492522,105180.0,105170.0,0.03787]
[1762237802698,0.20507543,105180.0,105170.0,0.003]
[1762237803102,3.2871429,105180.0,105170.0,0.003]
[1762237803320,3.64262023,105180.0,105170.0,0.003]
[1762237803737,3.66231545,105180.0,105170.0,0.003]
[1762237803949,3.64270075,105180.0,105170.0,0.003]
[1762237804155,3.64270075,105180.0,105170.0,0.002]
[1762237804354,3.64370075,105180.0,105170.0,0.002]
[1762237804579,3.64370075,105180.0,105150.0,0.03861]
[1762237804580,3.0,105160.0,105150.0,0.03861]
[1762237804792,3.0,105160.0,105150.0,0.03875543]
[1762237804991,0.19018638,105160.0,105150.0,0.03875543]
[1762237805202,3.53018638,105160.0,105150.0,0.00014543]
[1762237805441,3.5367711,105160.0,105150.0,0.00014543]
[1762237805646,3.63366082,105160.0,105150.0,0.00014543]
[1762237805858,3.66341746,105160.0,105150.0,0.00214543]
[1762237806283,3.56225668,105160.0,105150.0,0.00214543]
[1762237806509,3.56225668,105160.0,105150.0,0.00114543]
[1762237806701,3.59843896,105160.0,105150.0,0.00014543]
[1762237807099,3.60043896,105160.0,105150.0,0.00014543]
[1762237807285,3.59843896,105160.0,105150.0,0.00014543]
[1762237807469,3.69301502,105160.0,105150.0,0.00014543]
[1762237807665,3.57626704,105160.0,105150.0,0.00014543]
[1762237807896,3.54208476,105160.0,105150.0,0.00014543]
[1762237808343,3.53318638,105160.0,105150.0,0.00014543]
[1762237808690,3.54207589,105160.0,105150.0,0.00014543]
[1762237808897,3.53318638,105160.0,105150.0,0.00014543]
[1762237809127,3.53118638,105160.0,105150.0,0.00014543]
[1762237809336,3.53018638,105160.0,105150.0,0.00014543]
[1762237809551,3.62476244,105160.0,105150.0,0.00014543]
[1762237809972,0.1902559,105130.0,105110.0,0.03861]
[1762237810192,0.1902559,105130.0,105110.0,0.11387]
[1762237810193,0.00014527,105130.0,105110.0,0.11387]
[1762237810389,0.00014527,105130.0,105120.0,0.04921]
[1762237810590,0.00014527,105130.0,105120.0,0.12447]
[1762237810825,0.00014527,105130.0,105120.0,0.08454568]
[1762237811027,0.00014527,105130.0,105120.0,0.15980568]
[1762237811456,0.19038592,105130.0,105120.0,0.12447]
[1762237812094,0.19025875,105120.0,105110.0,0.03861]
[1762237812297,0.19038592,105130.0,105120.0,0.05121]
[1762237812709,0.19038592,105130.0,105120.0,0.12647]
[1762237812962,0.19025875,105120.0,105110.0,0.11387]
[1762237813153,0.19025875,105120.0,105110.0,0.13432751]
[1762237813356,0.19025875,105120.0,105110.0,0.18353751]
[1762237814316,0.19025875,105120.0,105110.0,0.09482]
[1762237815483,0.20415259,105120.0,105110.0,0.09482]
[1762237815915,0.20415259,105120.0,105110.0,0.007]
[1762237816355,3.54415259,105120.0,105110.0,0.007]
[1762237816539,3.55089737,105120.0,105110.0,0.007]
[1762237816797,3.64547343,105120.0,105110.0,0.007]
[1762237816999,3.63872865,105120.0,105110.0,0.007]
[1762237817221,0.19028076,105110.0,105090.0,0.11080481]
[1762237817422,0.01389384,105120.0,105110.0,0.08414]
[1762237817632,0.20415259,105120.0,105110.0,0.08614]
[1762237817867,0.19025875,105120.0,105110.0,0.08614]
[1762237818085,0.19025875,105120.0,105110.0,0.004]
[1762237818300,3.5518233,105120.0,105110.0,0.004]
[1762237818517,3.53025875,105120.0,105110.0,0.004]
[1762237818735,3.54429796,105120.0,105110.0,0.004]
[1762237818951,3.55922925,105120.0,105110.0,0.002]
[1762237819175,0.55922925,105120.0,105110.0,0.08414]
[1762237819396,0.53460803,105120.0,105110.0,0.03477]
[1762237819608,0.53360803,105120.0,105110.0,0.03477]
[1762237819838,0.53360803,105120.0,105090.0,0.03595481]
[1762237819839,0.19027685,105110.0,105090.0,0.03595481]
[1762237820057,0.19027685,105110.0,105090.0,0.1271818]
[1762237820561,0.19027685,105110.0,105100.0,0.12422]
[1762237820972,0.54312096,105120.0,105100.0,0.12422]
[1762237821391,0.19027685,105110.0,105100.0,0.04937]
[1762237821613,0.07287195,105100.0,105090.0,0.0543318]
[1762237821845,0.28098196,105110.0,105090.0,0.03595481]
[1762237822074,0.28098196,105110.0,105090.0,0.16217481]
[1762237822075,0.19029495,105100.0,105090.0,0.16217481]
[1762237822281,0.19027685,105110.0,105100.0,0.002]
[1762237822482,0.54312096,105120.0,105100.0,0.12622]
[1762237822682,0.19027685,105110.0,105100.0,0.12822]
[1762237822891,0.19027685,105110.0,105100.0,0.14454061]
[1762237823091,3.0,105110.0,105100.0,0.06969061]
[1762237823201,0.19027685,105110.0,105100.0,0.14454061]
[1762237823419,0.19027685,105110.0,105100.0,0.06969061]
[1762237823854,0.19027685,105110.0,105100.0,0.06769061]
[1762237824260,0.19027685,105110.0,105100.0,0.14254061]
[1762237824899,0.19027685,105110.0,105100.0,0.06769061]
[1762237825149,3.19027685,105110.0,105100.0,0.05137]
[1762237825369,0.19027685,105110.0,105100.0,0.05337]
[1762237825584,3.0,105110.0,105100.0,0.12822]
[1762237825796,3.19027685,105110.0,105100.0,0.12822]
[1762237825997,0.54312096,105120.0,105100.0,0.12822]
[1762237826204,0.19027685,105110.0,105100.0,0.14463748]
[1762237826406,0.54312096,105120.0,105100.0,0.14463748]
[1762237826613,3.0,105110.0,105100.0,0.14463748]
[1762237826816,3.0,105110.0,105100.0,0.14263748]
[1762237827048,0.54430146,105120.0,105100.0,0.14263748]
[1762237827250,0.54382819,105120.0,105100.0,0.14263748]
[1762237827432,0.28098196,105110.0,105100.0,0.002]
[1762237827878,3.28769263,105110.0,105100.0,0.002]
[1762237828101,3.28769263,105110.0,105100.0,0.004]
[1762237828319,3.28769263,105110.0,105100.0,0.002]
[1762237828538,3.19029495,105100.0,105090.0,0.00118481]
[1762237828960,0.19029495,105100.0,105090.0,0.00118481]
[1762237829163,0.53029495,105100.0,105090.0,0.00118481]
[1762237829581,3.53029495,105100.0,105090.0,0.00118481]
[1762237829993,0.53029495,105100.0,105090.0,0.00118481]
[1762237830631,3.56795982,105100.0,105090.0,0.00118481]
[1762237830860,3.5980633,105100.0,105090.0,0.00118481]
[1762237831068,3.53029495,105100.0,105090.0,0.00118481]
[1762237832355,3.34,105100.0,105090.0,0.08340481]
[1762237832557,3.53029495,105100.0,105090.0,0.08340481]
[1762237832765,3.53029495,105100.0,105090.0,0.03823481]
[1762237833008,3.53029495,105100.0,105090.0,0.00118481]
[1762237833461,3.53029495,105100.0,105090.0,0.00318481]
[1762237833703,3.62487101,105100.0,105090.0,0.00518481]
[1762237834150,3.53029495,105100.0,105090.0,0.00518481]
[1762237835030,3.53029495,105100.0,105090.0,0.00318481]
[1762237835230,3.53029495,105100.0,105090.0,0.00118481]
[1762237837685,3.55778813,105100.0,105090.0,0.00118481]
[1762237837910,3.53029495,105100.0,105090.0,0.00118481]
[1762237838586,3.63980621,105100.0,105090.0,0.00118481]
[1762237839289,3.62487101,105100.0,105090.0,0.00118481]
[1762237839482,3.53015103,105100.0,105090.0,0.00118481]
[1762237840357,3.54018486,105100.0,105090.0,0.00118481]
[1762237840563,3.53690902,105100.0,105090.0,0.00118481]
[1762237840774,3.53015103,105100.0,105090.0,0.00118481]
[1762237841606,0.53015103,105100.0,105090.0,0.08340481]
[1762237841815,0.19029495,105100.0,105090.0,0.09887129]
[1762237842026,0.53029495,105100.0,105090.0,0.05370129]
[1762237842225,0.53029495,105100.0,105090.0,0.00118481]
[1762237842226,3.53029495,105100.0,105090.0,0.00118481]
[1762237842851,0.53029495,105100.0,105090.0,0.08540481]
[1762237843260,0.53029495,105100.0,105090.0,0.03823481]
[1762237843957,0.34,105100.0,105090.0,0.0962576]
[1762237844191,0.53029495,105100.0,105090.0,0.00118481]
[1762237844417,0.34,105100.0,105090.0,0.15642481]
[1762237844886,0.34,105100.0,105090.0,0.08540481]
[1762237845114,0.53029495,105100.0,105090.0,0.08540481]
[1762237845331,0.53029495,105100.0,105090.0,0.08740481]
[1762237846335,0.53029495,105100.0,105090.0,0.00518481]
[1762237846751,3.53029495,105100.0,105090.0,0.00518481]
[1762237852341,3.53029495,105100.0,105090.0,0.00318481]
[1762237852552,3.53029495,105100.0,105090.0,0.00118481]
[1762237852969,3.53029495,105100.0,105090.0,0.00218481]
[1762237853788,3.54523165,105100.0,105090.0,0.00218481]
[1762237855329,3.63980771,105100.0,105090.0,0.00218481]
[1762237855514,3.53029495,105100.0,105090.0,0.00218481]
[1762237857638,3.53029495,105100.0,105090.0,0.03921481]
[1762237857860,3.53029495,105100.0,105090.0,0.00218481]
[1762237858646,3.54523121,105100.0,105090.0,0.00218481]
[1762237859004,0.54523121,105100.0,105090.0,0.03921481]
[1762237859427,0.54523121,105100.0,105090.0,0.00218481]
[1762237859645,3.62785253,105100.0,105090.0,0.00218481]
[1762237859811,3.61291627,105100.0,105090.0,0.00218481]
[1762237860180,3.53029495,105100.0,105090.0,0.00218481]
[1762237860373,0.53029495,105100.0,105090.0,0.08586481]
[1762237860512,0.52979495,105100.0,105090.0,0.03921481]
[1762237860711,3.52979495,105100.0,105090.0,0.00218481]
[1762237861326,3.55148683,105100.0,105090.0,0.00218481]
[1762237861533,3.65499607,105100.0,105090.0,0.00218481]
[1762237862336,3.55148683,105100.0,105090.0,0.00218481]
[1762237862795,3.56041603,105100.0,105090.0,0.00218481]
[1762237863017,3.56331632,105100.0,105090.0,0.00218481]
[1762237863629,3.53031306,105090.0,105080.0,0.00024]
[1762237863812,3.62488912,105090.0,105080.0,0.00024]
[1762237864649,3.53231306,105090.0,105080.0,0.00024]
[1762237864878,3.53331306,105090.0,105080.0,0.00072507]
[1762237866198,3.53331306,105090.0,105040.0,0.03517]
[1762237866199,0.1884832,105050.0,105040.0,0.03517]
[1762237866399,0.1884832,105050.0,105040.0,0.03531555]
[1762237867063,0.1884832,105050.0,105040.0,0.00054555]
[1762237867272,0.1884832,105050.0,105040.0,0.00654555]
[1762237867493,0.1884832,105050.0,105040.0,0.01054555]
[1762237867494,0.5284832,105050.0,105040.0,0.01054555]
[1762237867933,0.60036981,105050.0,105040.0,0.00054555]
[1762237868140,3.60036981,105050.0,105040.0,0.00354555]
[1762237868561,3.63436911,105050.0,105040.0,0.00354555]
[1762237869478,3.53524673,105050.0,105040.0,0.00354555]
[1762237869700,3.5284832,105050.0,105040.0,0.00354555]
[1762237869897,0.5284832,105050.0,105040.0,0.00473156]
[1762237870580,0.1884832,105050.0,105040.0,0.00473156]
[1762237871446,0.27918831,105050.0,105040.0,0.00473156]
[1762237871862,0.3043156,105050.0,105040.0,0.00473156]
[1762237872913,3.3043156,105050.0,105040.0,0.00473156]
[1762237874215,3.21361049,105050.0,105040.0,0.00473156]
[1762237877041,3.55361049,105050.0,105040.0,0.00473156]
[1762237877301,3.58070699,105050.0,105040.0,0.00473156]
[1762237878039,3.3670965,105050.0,105040.0,0.00473156]
[1762237878269,3.53038553,105050.0,105040.0,0.00473156]
[1762237880798,0.02862596,105060.0,105040.0,0.41606017]
[1762237881020,0.19034983,105070.0,105050.0,0.07693]
[1762237881251,3.0,105070.0,105050.0,0.39980289]
[1762237881479,3.0,105090.0,105060.0,0.34361925]
[1762237881670,0.19031351,105090.0,105080.0,0.03342]
[1762237882632,0.53031351,105090.0,105080.0,0.03342]
[1762237882907,0.19033117,105080.0,105070.0,0.03342]
[1762237883150,0.1903674,105060.0,105050.0,0.03342]
[1762237883399,3.1903674,105060.0,105050.0,0.00014555]
[1762237883642,3.5303674,105060.0,105050.0,0.00014555]
[1762237885051,3.55899071,105060.0,105050.0,0.00014555]
[1762237885538,3.612544,105060.0,105050.0,0.00014555]
[1762237885778,3.70712006,105060.0,105050.0,0.00214555]
[1762237886046,0.19038553,105050.0,105040.0,0.0004]
[1762237886280,3.31727292,105050.0,105040.0,0.0004]
[1762237886723,3.31727292,105050.0,105040.0,0.00158601]
[1762237886948,3.35428065,105050.0,105040.0,0.00158601]
[1762237887218,3.31809837,105050.0,105040.0,0.00158601]
[1762237887472,3.28109064,105050.0,105040.0,0.00158601]
[1762237893954,3.30971953,105050.0,105040.0,0.00158601]
[1762237894166,0.21901442,105050.0,105040.0,0.00158601]
[1762237894666,3.30971953,105050.0,105040.0,0.00158601]
[1762237894887,3.43227791,105050.0,105040.0,0.00158601]
[1762237895112,3.24189238,105050.0,105040.0,0.00158601]
[1762237895319,3.43227791,105050.0,105040.0,0.00158601]
[1762237895530,3.43227791,105050.0,105040.0,0.00458601]
[1762237895744,3.43227791,105050.0,105040.0,0.00358601]
[1762237896379,0.19045805,105010.0,105000.0,0.03478]
[1762237896601,0.28116316,105010.0,105000.0,0.00024509]
[1762237897018,0.30980046,105010.0,105000.0,0.00024509]
[1762237897857,0.30980046,105010.0,105000.0,0.00624509]
[1762237898499,0.30980046,105010.0,105000.0,0.01024509]
[1762237899324,0.64980046,105010.0,105000.0,0.00624509]
[1762237899575,0.64980046,105010.0,105000.0,0.00724509]
[1762237899794,0.64980046,105010.0,105000.0,0.00124509]
[1762237900021,0.64980046,105010.0,105000.0,0.00224509]
[1762237900881,0.66407919,105010.0,105000.0,0.00224509]
[1762237900884,0.74959718,105010.0,105000.0,0.00224509]
[1762237901094,0.40959718,105010.0,105000.0,0.00224509]
[1762237901538,3.74959718,105010.0,105000.0,0.00224509]
[1762237901978,3.74959718,105010.0,105000.0,0.00319449]
[1762237902831,3.66407919,105010.0,105000.0,0.00319449]
[1762237905737,3.70026147,105010.0,104990.0,0.0004]
[1762237905945,3.70026147,105010.0,104980.0,0.0004]
[1762237905946,3.53049433,104990.0,104980.0,0.0004]
[1762237906151,3.53049433,104990.0,104980.0,0.00088375]
[1762237906358,3.63183393,104990.0,104980.0,3.75e-06]
[1762237906565,3.19051247,104980.0,104970.0,0.0004]
[1762237906769,3.53099661,104980.0,104970.0,0.0004]
[1762237907195,3.54594315,104980.0,104970.0,0.0004]
[1762237907403,0.53729416,104970.0,104960.0,0.0002]
[1762237907608,3.66920522,104970.0,104960.0,0.0002]
[1762237907830,3.66244168,104970.0,104960.0,0.0002]
[1762237909004,3.66920522,104970.0,104960.0,0.0002]
[1762237909220,3.70530424,104970.0,104960.0,0.0022]
[1762237909433,3.22673106,104960.0,104950.0,0.0002]
[1762237909663,3.34793367,104960.0,104950.0,0.0002]
[1762237910493,0.53058509,104940.0,104930.0,0.0002]
[1762237910722,3.53948836,104940.0,104930.0,0.0002]
[1762237911144,3.53948836,104940.0,104930.0,3e-05]
[1762237911364,0.53062142,104920.0,104910.0,0.02791062]
[1762237911824,0.53062142,104920.0,104910.0,0.07310634]
[1762237912065,0.34,104920.0,104910.0,0.07310634]
[1762237912295,0.34882849,104920.0,104910.0,0.07524473]
[1762237912539,0.36865861,104940.0,104920.0,0.19062111]
[1762237912738,0.36648599,104940.0,104930.0,0.07783]
[1762237912966,0.55707108,104940.0,104930.0,0.03278]
[1762237913185,0.02648599,104940.0,104930.0,0.33891325]
[1762237913463,0.02648599,104940.0,104930.0,0.20684917]
[1762237913748,0.02648599,104940.0,104930.0,0.39745242]
[1762237913977,0.02864871,104960.0,104940.0,0.19058401]
[1762237914184,0.22802038,104960.0,104950.0,0.07783]
[1762237914391,0.00882248,104960.0,104950.0,0.07783]
[1762237914604,0.00882248,104960.0,104950.0,0.13077608]
[1762237915018,0.00882248,104960.0,104950.0,0.20125608]
[1762237915221,0.00882248,104960.0,104950.0,0.39182301]
[1762237915428,0.00930632,104960.0,104950.0,0.37276632]
[1762237915628,0.00930632,104960.0,104950.0,0.37476632]
[1762237915833,0.00930632,104960.0,104950.0,0.18419939]
[1762237916266,0.00930632,104960.0,104950.0,0.18819939]
[1762237916478,0.00930632,104960.0,104950.0,0.37876632]
[1762237917271,0.0092918,104960.0,104950.0,0.46947143]
[1762237917483,0.00048384,104960.0,104950.0,0.46947143]
[1762237918046,0.00048384,104960.0,104950.0,0.2789045]
[1762237918315,0.22868405,104980.0,104950.0,0.2789045]
[1762237918316,0.22868405,104980.0,104960.0,0.11553]
[1762237918523,0.22868405,104980.0,104970.0,0.03278]
[1762237918524,0.03745151,104980.0,104970.0,0.03278]
[1762237918726,0.00880844,104980.0,104970.0,0.16736306]
[1762237919006,0.19932091,104980.0,104970.0,0.14831]
[1762237919213,0.00880844,104980.0,104970.0,0.14831]
[1762237919664,0.001,104980.0,104970.0,0.14831]
[1762237919854,0.19151247,104980.0,104970.0,0.14831]
[1762237920075,0.19051247,104980.0,104970.0,0.14831]
[1762237920217,0.19051247,104980.0,104970.0,0.1645621]
[1762237920425,0.19051247,104980.0,104970.0,0.07783]
[1762237920641,0.19054878,104960.0,104950.0,0.13714939]
[1762237920842,0.20103809,104980.0,104950.0,0.10326]
[1762237921043,0.00981143,104980.0,104970.0,0.07783]
[1762237921299,0.002,104980.0,104970.0,0.26836062]
[1762237921531,0.002,104980.0,104970.0,0.39177936]
[1762237921735,0.001,104980.0,104970.0,0.48248447]
[1762237922158,0.01481744,105010.0,104990.0,0.19048462]
[1762237922375,0.03760299,105010.0,105000.0,0.09687761]
[1762237922583,0.19942579,105010.0,105000.0,0.07783]
[1762237922809,0.19942579,105010.0,105000.0,0.09468351]
[1762237923274,0.19047619,105000.0,104990.0,0.03278]
[1762237923536,0.19929876,105000.0,104980.0,0.07048]
[1762237923739,0.00882257,105000.0,104990.0,0.14831]
[1762237923890,0.00882257,105000.0,104990.0,0.33880433]
[1762237924094,0.00882257,105000.0,104990.0,0.39173591]
[1762237924298,0.00882257,105000.0,104990.0,0.20124158]
[1762237924528,0.00882257,105000.0,104990.0,0.41178534]
[1762237924677,0.19929876,105000.0,104990.0,0.20224158]
[1762237924881,0.19929876,105000.0,104990.0,0.15231]
[1762237925083,0.00882257,105000.0,104990.0,0.15331]
[1762237925306,0.00882257,105000.0,104990.0,0.33980433]
[1762237925729,0.00882257,105000.0,104990.0,0.43450944]
[1762237926576,0.00014517,105010.0,104990.0,0.24401511]
[1762237926577,0.19060344,105010.0,104990.0,0.24401511]
[1762237926785,0.19060344,105010.0,105000.0,0.04505]
[1762237926997,0.00014517,105010.0,105000.0,0.11553]
[1762237927841,0.00014517,105010.0,105000.0,0.31515031]
[1762237928075,0.19060322,105010.0,105000.0,0.11553]
[1762237929128,0.19060322,105010.0,105000.0,0.11753]
[1762237929979,0.19060322,105010.0,105000.0,0.04705]
[1762237930190,0.19060322,105010.0,105000.0,0.002]